bitfinex/quotes_SOLUSD_20250330
["timestamp","ask_amount","ask_price","bid_price","bid_amount"]
[1743354442230,33.17143727,123.44,123.38,8.105]
[1743354442434,18.64964886,123.43,123.4,0.03]
[1743354443041,33.17143727,123.44,123.4,0.03]
[1743354443345,81.163,123.45,123.4,0.03]
[1743354445535,0.063,123.45,123.41,8.14]
[1743354445839,32.95011413,123.45,123.41,8.14]
[1743354446037,7.9398,123.44,123.4,0.03]
[1743354446251,18.933972,123.35,123.29,8.1109]
[1743354446431,51.53676299,123.35,123.29,8.1109]
[1743354446823,51.53676299,123.35,123.28,0.03]
[1743354446824,0.28432314,123.34,123.28,0.03]
[1743354447435,81.1,123.37,123.28,8.19]
[1743354447934,20.501972,123.38,123.28,8.19]
[1743354448238,18.933972,123.38,123.28,8.19]
[1743354448937,18.933972,123.38,123.29,28.3882]
[1743354449137,51.82108613,123.38,123.29,28.3882]
[1743354449327,51.82108613,123.38,123.3,8.16]
[1743354449640,32.88711413,123.36,123.3,8.16]
[1743354449843,18.933972,123.33,123.28,8.1415]
[1743354450051,51.82108613,123.33,123.28,8.1415]
[1743354450341,0.14216157,123.35,123.28,8.1415]
[1743354450342,32.88711413,123.34,123.28,8.1415]
[1743354450522,18.64964886,123.33,123.28,8.1415]
[1743354450723,51.53676299,123.33,123.28,8.1415]
[1743354451545,32.88711413,123.33,123.29,73.51514472]
[1743354451754,0.14216157,123.34,123.29,73.51514472]
[1743354452257,49.33311604,123.34,123.3,45.54742662]
[1743354452437,12.92339148,123.34,123.3,45.54742662]
[1743354452743,49.33311604,123.33,123.3,11.9861649]
[1743354453038,49.33311604,123.34,123.3,11.9861649]
[1743354453631,18.79181043,123.35,123.3,20.0963649]
[1743354453843,0.28432314,123.35,123.3,20.0963649]
[1743354454143,81.1,123.36,123.3,8.1102]
[1743354454339,6.3718,123.39,123.3,28.3859]
[1743354454742,0.28432314,123.38,123.3,28.3859]
[1743354455251,18.64964886,123.4,123.31,1.5072]
[1743354455454,130.57527761,123.41,123.32,8.12]
[1743354455826,81.24216157,123.41,123.32,8.12]
[1743354456031,49.33311604,123.4,123.32,8.12]
[1743354456228,130.43311604,123.41,123.32,8.12]
[1743354457242,130.43311604,123.41,123.33,28.3791]
[1743354457445,49.33311604,123.41,123.33,28.3791]
[1743354457643,0.28432314,123.42,123.33,28.3791]
[1743354457844,49.33311604,123.41,123.33,28.3791]
[1743354458041,49.33311604,123.39,123.33,28.3791]
[1743354458428,49.33311604,123.4,123.33,28.3791]
[1743354458833,49.33311604,123.41,123.33,28.3791]
[1743354459946,74.49672647,123.43,123.33,28.3791]
[1743354460347,49.33311604,123.42,123.33,28.3791]
[1743354460841,49.33311604,123.42,123.33,68.9207]
[1743354461427,49.33311604,123.39,123.33,28.3791]
[1743354461648,0.14216157,123.36,123.31,8.1096]
[1743354461839,49.33311604,123.35,123.31,8.1096]
[1743354462035,49.33311604,123.34,123.31,8.1096]
[1743354462442,49.33311604,123.35,123.31,8.1096]
[1743354462755,49.33311604,123.36,123.3,28.4148]
[1743354463046,49.33311604,123.35,123.3,28.4148]
[1743354463427,49.33311604,123.35,123.3,8.1403]
[1743354463840,49.33311604,123.36,123.3,8.1403]
[1743354464048,0.42648471,123.37,123.3,28.416]
[1743354464350,49.33311604,123.36,123.3,28.416]
[1743354465140,49.33311604,123.35,123.3,28.416]
[1743354466039,6.47478471,123.37,123.3,8.1403]
[1743354466040,49.33311604,123.34,123.3,8.1403]
[1743354466735,49.33311604,123.33,123.3,8.1403]
[1743354466928,49.33311604,123.34,123.3,8.1403]
[1743354471756,49.33311604,123.34,123.3,0.03]
[1743354472135,49.61743918,123.35,123.3,0.03]
[1743354473636,33.16249273,123.35,123.3,0.03]
[1743354474056,51.59081845,123.36,123.3,0.03]
[1743354474440,33.3046543,123.35,123.3,0.03]
[1743354474763,32.87816959,123.34,123.3,0.03]
[1743354475053,0.42648471,123.35,123.3,0.03]
[1743354475054,33.16249273,123.35,123.3,0.03]
[1743354475560,0.28432314,123.35,123.3,0.03]
[1743354475860,33.16249273,123.35,123.3,0.03]
[1743354478059,32.87816959,123.34,123.3,0.03]
[1743354478359,18.64964886,123.33,123.3,0.03]
[1743354478543,32.87816959,123.31,123.3,0.03]
[1743354478855,51.52781845,123.31,123.3,0.03]
[1743354479959,18.64964886,123.32,123.3,0.03]
[1743354480360,113.97816959,123.33,123.3,0.03]
[1743354481750,0.063,123.35,123.3,0.03]
[1743354483560,0.063,123.35,123.3,7.93]
[1743354483970,0.063,123.35,123.31,8.1096]
[1743354484348,0.063,123.35,123.31,28.3837]
[1743354488465,0.063,123.35,123.33,8.1083]
[1743354488962,0.0001,123.35,123.33,8.1083]
[1743354489152,0.063,123.36,123.35,20.28432314]
[1743354489462,4.06064201,123.41,123.35,28.12432314]
[1743354490252,36.9388116,123.44,123.35,28.12432314]
[1743354490642,36.9388116,123.44,123.36,28.3721]
[1743354491870,4.06064201,123.44,123.36,28.3721]
[1743354492158,4.06064201,123.43,123.36,28.3721]
[1743354492737,4.06064201,123.43,123.37,6.1379]
[1743354493352,32.94116959,123.45,123.38,7.82]
[1743354493746,45.09974551,123.45,123.38,7.82]
[1743354494058,36.99924551,123.45,123.39,8.1043]
[1743354494844,0.063,123.45,123.39,8.1043]
[1743354495371,0.063,123.45,123.39,28.3652]
[1743354495554,0.063,123.45,123.4,1.5225]
[1743354496042,0.063,123.45,123.41,28.3606]
[1743354503171,0.063,123.45,123.42,0.28432314]
[1743354503468,0.063,123.45,123.44,6.2863]
[1743354503964,0.063,123.45,123.44,6.57062314]
[1743354504268,0.063,123.45,123.44,14.67172314]
[1743354504475,0.0001,123.45,123.44,14.67172314]
[1743354504973,0.063,123.49,123.44,34.92442314]
[1743354505202,0.063,123.49,123.45,0.28432314]
[1743354505846,0.063,123.49,123.47,21.5767]
[1743354506054,0.063,123.49,123.48,7.74]
[1743354506470,0.063,123.49,123.48,15.8384]
[1743354506763,0.063,123.49,123.48,16.12272314]
[1743354506967,0.063,123.49,123.48,15.8384]
[1743354507673,0.063,123.49,123.48,16.12272314]
[1743354508373,0.063,123.49,123.48,15.8384]
[1743354509776,0.063,123.49,123.48,16.12272314]
[1743354510554,0.063,123.53,123.49,0.14216157]
[1743354510750,0.063,123.53,123.49,0.28432314]
[1743354511057,0.063,123.53,123.5,6.0222]
[1743354511467,0.063,123.53,123.52,20.0]
[1743354512694,0.063,123.53,123.52,28.0958]
[1743354514079,0.063,123.53,123.52,8.0958]
[1743354514386,0.063,123.53,123.52,28.0958]
[1743354514886,0.063,123.58,123.55,20.0]
[1743354515076,0.063,123.58,123.56,7.88]
[1743354516670,0.063,123.58,123.57,8.0925]
[1743354525700,0.063,123.58,123.57,8.23466157]
[1743354527785,0.063,123.58,123.57,8.0925]
[1743354530299,0.063,123.58,123.57,8.23466157]
[1743354530890,0.063,123.62,123.58,0.14216157]
[1743354531893,0.063,123.62,123.57,28.3239]
[1743354534390,0.063,123.62,123.61,20.0]
[1743354534607,9.05187734,123.65,123.62,0.14216157]
[1743354534812,9.05187734,123.65,123.63,8.0886]
[1743354535016,9.05187734,123.65,123.64,0.14216157]
[1743354535509,9.05187734,123.65,123.63,8.0886]
[1743354536008,9.11487734,123.71,123.63,28.3102]
[1743354536811,9.11487734,123.71,123.63,20.2216]
[1743354537009,29.57138721,123.71,123.63,20.2216]
[1743354537211,20.45650987,123.7,123.64,7.76]
[1743354537386,20.51950987,123.71,123.64,7.76]
[1743354537811,0.063,123.71,123.64,7.76]
[1743354538623,20.51950987,123.71,123.64,7.76]
[1743354538802,20.51950987,123.71,123.65,8.0873]
[1743354539005,0.063,123.71,123.65,8.0873]
[1743354539211,20.51950987,123.71,123.65,8.0873]
[1743354539628,20.45650987,123.7,123.65,8.0873]
[1743354540220,20.45650987,123.7,123.64,15.8478]
[1743354540426,20.51950987,123.71,123.64,15.8478]
[1743354540722,0.063,123.71,123.64,36.0677]
[1743354541719,0.063,123.71,123.65,0.28432314]
[1743354541913,0.063,123.71,123.65,18.933972]
[1743354543124,0.063,123.71,123.67,0.14216157]
[1743354543419,0.063,123.71,123.7,38.79181043]
[1743354543621,0.063,123.71,123.7,46.53181043]
[1743354543803,0.063,123.71,123.7,27.88216157]
[1743354544008,0.063,123.71,123.7,27.74]
[1743354544932,0.063,123.71,123.7,35.824]
[1743354545144,0.063,123.71,123.7,28.084]
[1743354546708,0.063,123.71,123.7,28.22616157]
[1743354547220,0.063,123.71,123.7,28.084]
[1743354547420,0.063,123.71,123.7,8.084]
[1743354548336,0.063,123.71,123.7,28.084]
[1743354548528,0.063,123.71,123.7,20.0]
[1743354550540,0.063,123.71,123.7,28.084]
[1743354550826,0.063,123.71,123.7,28.22616157]
[1743354551041,0.063,123.71,123.7,28.084]
[1743354553538,0.063,123.71,123.68,8.0853]
[1743354553913,20.51950987,123.71,123.67,8.0857]
[1743354554118,20.45650987,123.7,123.65,7.7]
[1743354554612,26.96480987,123.71,123.65,7.7]
[1743354555018,35.04820987,123.71,123.65,7.7]
[1743354555226,39.10615873,123.69,123.64,8.0879]
[1743354555434,20.45650987,123.69,123.64,8.0879]
[1743354555619,39.10615873,123.7,123.64,8.0879]
[1743354555820,18.64964886,123.7,123.64,28.3078]
[1743354556619,26.96480987,123.71,123.64,28.3078]
[1743354560542,20.45650987,123.69,123.64,28.3078]
[1743354561241,39.39048187,123.7,123.64,28.3078]
[1743354561443,20.45650987,123.69,123.64,28.3078]
[1743354562445,18.933972,123.7,123.64,28.3078]
[1743354562446,20.74083301,123.7,123.64,28.3078]
[1743354562750,20.45650987,123.7,123.64,28.3078]
[1743354563431,39.10615873,123.7,123.64,28.3078]
[1743354563627,20.45650987,123.7,123.64,28.3078]
[1743354564847,45.61445873,123.71,123.64,28.3078]
[1743354565656,25.15794886,123.71,123.64,35.9678]
[1743354565861,45.61445873,123.71,123.64,35.9678]
[1743354566356,0.063,123.71,123.67,20.0]
[1743354566855,0.063,123.71,123.68,8.0853]
[1743354568160,0.063,123.71,123.64,7.66]
[1743354568161,20.45650987,123.7,123.64,7.66]
[1743354568450,20.45650987,123.69,123.65,8.087]
[1743354568650,20.45650987,123.68,123.64,8.0877]
[1743354568849,20.45650987,123.68,123.63,8.0886]
[1743354569937,20.59867144,123.7,123.63,28.3102]
[1743354570257,20.51950987,123.71,123.63,28.3102]
[1743354570757,28.60290987,123.71,123.63,28.3102]
[1743354572163,20.45650987,123.7,123.63,28.3102]
[1743354573557,20.45650987,123.7,123.63,8.0886]
[1743354573558,20.45650987,123.68,123.63,8.0886]
[1743354574463,20.45650987,123.67,123.62,96.7788]
[1743354574667,18.933972,123.69,123.62,36.0024]
[1743354574841,28.60290987,123.71,123.65,20.0]
[1743354576064,20.45650987,123.7,123.65,28.0867]
[1743354577062,20.51950987,123.71,123.65,28.0867]
[1743354577447,0.063,123.71,123.65,28.0867]
[1743354578064,0.063,123.71,123.65,40.2183]
[1743354579768,20.51950987,123.71,123.67,20.0]
[1743354580068,0.063,123.71,123.68,8.0853]
[1743354581362,0.063,123.71,123.68,28.2987]
[1743354581945,0.063,123.71,123.7,20.0]
[1743354582241,0.063,123.71,123.7,28.084]
[1743354587360,0.063,123.71,123.7,47.017972]
[1743354587872,0.063,123.71,123.7,51.04394472]
[1743354588664,0.063,123.72,123.7,51.04394472]
[1743354588859,0.063,123.72,123.71,18.933972]
[1743354589059,0.063,123.78,123.74,20.0]
[1743354589255,0.063,123.78,123.75,8.0808]
[1743354592455,0.063,123.78,123.77,20.0]
[1743354592645,0.063,123.78,123.77,20.28432314]
[1743354592849,0.063,123.78,123.77,38.933972]
[1743354593459,0.063,123.78,123.77,47.013472]
[1743354595471,0.063,123.78,123.77,128.29739514]
[1743354595985,0.063,123.78,123.77,128.013072]
[1743354597169,0.0001,123.79,123.78,18.933972]
[1743354597660,0.0001,123.79,123.78,27.012772]
[1743354601174,0.0001,123.79,123.78,8.0788]
[1743354602485,0.0001,123.79,123.78,27.012772]
[1743354606085,0.0001,123.79,123.78,27.29709514]
[1743354606270,0.0001,123.79,123.78,27.36009514]
[1743354608191,0.0001,123.79,123.78,8.1418]
[1743354609890,0.0001,123.79,123.78,15.8018]
[1743354610089,0.0001,123.79,123.78,34.735772]
[1743354610477,0.0001,123.79,123.78,35.02009514]
[1743354610794,0.063,123.81,123.79,18.933972]
[1743354611391,0.063,123.81,123.8,27.011472]
[1743354611573,0.063,123.82,123.8,27.011472]
[1743354612175,0.0001,123.82,123.81,19.21829514]
[1743354612374,0.063,123.84,123.83,38.933972]
[1743354612576,0.063,123.84,123.83,46.593972]
[1743354612994,0.063,123.84,123.83,20.0]
[1743354613389,0.063,123.84,123.83,28.0755]
[1743354613998,0.063,123.84,123.83,47.009472]
[1743354614293,0.063,123.84,123.83,47.29379514]
[1743354614597,0.0001,123.84,123.83,47.29379514]
[1743354614979,0.063,123.85,123.84,18.933972]
[1743354615375,0.063,123.91,123.87,20.0]
[1743354615697,0.063,123.91,123.88,20.0]
[1743354616994,0.063,123.91,123.88,27.66]
[1743354617197,0.063,123.91,123.89,18.933972]
[1743354617385,8.1482,123.95,123.9,8.071]
[1743354617386,7.8372,123.95,123.9,8.071]
[1743354619578,7.8372,123.95,123.92,20.0]
[1743354619779,20.45650987,123.94,123.89,8.0716]
[1743354619985,20.45650987,123.93,123.89,8.0716]
[1743354620198,20.45650987,123.92,123.88,15.732]
[1743354620876,20.45650987,123.93,123.88,15.732]
[1743354621278,18.64964886,123.94,123.88,15.732]
[1743354621499,20.45650987,123.94,123.88,15.732]
[1743354621800,0.063,123.96,123.88,37.4553]
[1743354622188,20.45650987,123.95,123.88,37.4553]
[1743354622382,20.45650987,123.95,123.88,35.9128]
[1743354623403,20.51950987,123.96,123.89,18.933972]
[1743354623787,20.51950987,123.96,123.9,8.071]
[1743354624110,0.063,123.96,123.94,20.0]
[1743354624279,0.063,123.96,123.94,27.66]
[1743354625201,0.063,123.96,123.94,7.66]
[1743354625402,20.51950987,123.96,123.93,20.0]
[1743354626401,0.063,123.96,123.93,20.0]
[1743354626706,0.063,123.96,123.93,28.069]
[1743354627981,0.063,123.96,123.92,8.0697]
[1743354628293,20.45650987,123.95,123.91,15.7303]
[1743354628687,20.51950987,123.96,123.91,15.7303]
[1743354629189,0.063,123.96,123.91,15.7303]
[1743354629400,20.51950987,123.96,123.91,15.7303]
[1743354629987,0.063,123.96,123.91,15.7303]
[1743354630399,0.063,123.96,123.91,35.9062]
[1743354630796,0.063,123.96,123.92,0.28432314]
[1743354631106,0.063,123.96,123.92,18.933972]
[1743354632005,0.063,123.96,123.95,20.0]
[1743354633012,0.063,123.96,123.95,38.933972]
[1743354633388,0.063,123.96,123.95,39.21829514]
[1743354633804,0.063,123.97,123.96,18.933972]
[1743354633991,0.063,124.01,123.99,20.0]
[1743354635013,0.063,124.01,124.0,20.0]
[1743354635995,0.063,124.01,124.0,28.0645]
[1743354637294,0.063,124.01,124.0,46.998472]
[1743354638018,0.063,124.01,124.0,28.0645]
[1743354638719,0.063,124.01,123.99,8.0651]
[1743354639011,0.063,124.01,123.98,15.7058]
[1743354639598,0.063,124.01,123.98,7.64]
[1743354639797,0.063,124.01,123.98,15.7056]
[1743354642215,0.063,124.01,124.0,20.0]
[1743354643616,0.063,124.01,124.0,38.933972]
[1743354643819,0.063,124.01,124.0,40.559672]
[1743354644322,0.063,124.01,124.0,48.624172]
[1743354645318,0.063,124.01,124.0,129.90809514]
[1743354645529,0.0001,124.01,124.0,141.00809514]
[1743354649821,0.03,124.09,124.04,20.0]
[1743354650835,0.03,124.09,124.05,8.0612]
[1743354652130,0.03,124.09,124.06,18.933972]
[1743354652826,0.03,124.09,124.07,8.0599]
[1743354655444,0.03,124.09,124.08,7.64]
[1743354657219,0.03,124.09,124.08,15.6993]
[1743354658343,0.03,124.09,124.05,80.9996]
[1743354658827,0.03,124.09,124.05,89.0605]
[1743354659445,20.48650987,124.09,124.05,89.0605]
[1743354659740,0.03,124.09,124.05,89.0605]
[1743354660439,20.48650987,124.09,124.05,89.0605]
[1743354661317,20.48650987,124.09,124.03,28.2187]
[1743354661729,20.48650987,124.09,124.03,35.8587]
[1743354661935,20.45650987,124.08,124.03,15.7025]
[1743354662444,0.03,124.09,124.03,35.8589]
[1743354663538,0.03,124.09,124.04,0.28432314]
[1743354663715,0.03,124.09,124.07,20.0]
[1743354665247,20.45650987,124.08,124.03,28.2189]
[1743354665539,20.48650987,124.09,124.03,28.2189]
[1743354665724,0.03,124.09,124.03,35.8589]
[1743354665923,0.03,124.09,124.04,18.933972]
[1743354666122,0.03,124.09,124.04,0.28432314]
[1743354667347,0.03,124.09,124.04,18.933972]
[1743354667645,0.03,124.09,124.05,8.0612]
[1743354667940,0.03,124.09,124.05,28.2143]
[1743354668822,0.03,124.09,124.05,8.0612]
[1743354669022,20.45650987,124.07,124.04,8.0617]
[1743354669217,20.45650987,124.07,124.03,80.9996]
[1743354669218,20.45650987,124.05,124.01,0.063]
[1743354669424,20.45650987,124.04,124.01,0.063]
[1743354669624,20.45650987,124.04,124.01,8.1263]
[1743354669824,20.45650987,124.07,124.01,28.2859]
[1743354670139,20.45650987,124.06,124.01,28.2859]
[1743354670932,20.45650987,124.07,124.01,28.2859]
[1743354674751,20.45650987,124.05,124.01,8.1263]
[1743354674927,20.45650987,124.06,124.01,8.1263]
[1743354675127,20.45650987,124.07,124.01,8.1263]
[1743354675328,20.45650987,124.08,124.01,8.1263]
[1743354675935,20.45650987,124.07,124.01,28.2859]
[1743354676746,20.45650987,124.07,124.04,28.0613]
[1743354677651,20.45650987,124.08,124.04,28.0613]
[1743354678229,20.45650987,124.06,124.04,20.0]
[1743354679248,20.45650987,124.05,124.02,8.0631]
[1743354679547,20.45650987,124.03,124.01,0.063]
[1743354679746,20.45650987,124.02,124.01,0.063]
[1743354679938,20.45650987,124.03,124.01,0.063]
[1743354680551,20.45650987,124.03,124.01,8.1265]
[1743354680753,20.45650987,124.03,124.01,0.063]
[1743354681057,20.45650987,124.02,124.01,0.063]
[1743354683745,20.45650987,124.02,123.95,101.37406157]
[1743354683746,0.14216157,123.96,123.95,0.063]
[1743354683934,6.3344,123.97,123.95,0.063]
[1743354683935,26.79090987,123.97,123.95,0.063]
[1743354684333,20.45650987,123.96,123.95,0.063]
[1743354686358,20.45650987,123.98,123.95,0.063]
[1743354686650,1.5641,123.99,123.95,0.063]
[1743354686651,20.45650987,123.99,123.95,0.063]
[1743354687031,20.45650987,123.99,123.95,8.1307]
[1743354687344,20.45650987,123.99,123.95,15.9307]
[1743354687547,20.45650987,123.98,123.95,15.9307]
[1743354687737,32.54119277,123.98,123.95,7.863]
[1743354688850,14.61056157,124.01,123.95,7.863]
[1743354688851,32.54119277,123.99,123.95,7.863]
[1743354689052,32.54119277,123.99,123.95,15.9302]
[1743354689235,32.54119277,123.98,123.95,15.9302]
[1743354689434,32.54119277,123.99,123.95,15.9302]
[1743354690150,32.54119277,124.0,123.95,15.9302]
[1743354690650,32.54119277,124.02,123.96,0.14216157]
[1743354691057,32.54119277,124.02,123.97,8.0664]
[1743354691356,32.54119277,124.03,123.97,8.0664]
[1743354693144,32.54119277,124.02,123.97,8.0664]
[1743354694152,32.54119277,124.03,123.97,28.2325]
[1743354694744,6.4043,124.04,124.0,20.0]
[1743354694935,38.94549277,124.04,124.0,27.74]
[1743354695742,38.94549277,124.04,124.01,8.0638]
[1743354699157,32.54119277,124.04,124.01,8.0638]
[1743354699943,32.54119277,124.04,124.0,28.0642]
[1743354700157,32.54119277,124.03,124.0,28.0642]
[1743354701157,32.54119277,124.04,124.0,28.0642]
[1743354701461,89.30226157,124.07,124.0,28.0642]
[1743354701462,81.38432314,124.07,124.0,28.0642]
[1743354701765,32.54119277,124.06,124.0,48.2254]
[1743354701955,0.03,124.03,124.0,48.2254]
[1743354702156,0.03,124.03,124.01,1.68656157]
[1743354702760,0.03,124.03,124.01,82.68616157]
[1743354702959,0.03,124.03,124.02,18.79181043]
[1743354703148,0.03,124.03,124.02,0.14216157]
[1743354703349,0.03,124.03,124.02,18.79181043]
[1743354703549,0.03,124.03,124.02,25.41021043]
[1743354703963,0.03,124.03,124.02,33.47341043]
[1743354704684,0.03,124.08,124.05,20.0]
[1743354704865,0.03,124.08,124.06,7.82216157]
[1743354705172,0.03,124.08,124.06,9.36656157]
[1743354705969,0.03,124.08,124.07,8.0599]
[1743354712761,0.03,124.08,124.05,109.0602]
[1743354713076,20.32171867,124.08,124.05,109.0602]
[1743354714280,20.32171867,124.08,124.05,80.9996]
[1743354715071,20.32171867,124.08,124.05,8.0611]
[1743354715882,20.29171867,124.07,124.04,15.7417]
[1743354716183,20.29171867,124.06,124.03,8.1251]
[1743354717077,20.29171867,124.06,124.03,0.063]
[1743354717279,20.29171867,124.05,124.03,0.063]
[1743354717487,20.29171867,124.06,124.03,0.063]
[1743354720182,20.29171867,124.05,124.03,0.063]
[1743354720387,20.29171867,124.04,124.03,0.063]
[1743354721875,28.35361867,124.04,124.03,0.063]
[1743354722069,30.16934181,124.04,124.03,0.063]
[1743354722275,36.46334181,124.04,124.03,0.063]
[1743354722782,75.54687091,124.04,124.03,0.063]
[1743354723283,156.64687091,124.04,124.03,0.063]
[1743354724087,136.35515224,124.04,124.03,0.063]
[1743354725667,18.79181043,124.03,123.97,0.063]
[1743354725872,20.29171867,123.99,123.97,0.063]
[1743354726066,20.29171867,124.0,123.97,0.063]
[1743354726265,20.29171867,123.99,123.97,0.063]
[1743354726466,20.29171867,124.0,123.97,0.063]
[1743354727374,20.29171867,124.01,123.97,0.063]
[1743354727698,7.8554,124.04,123.97,0.063]
[1743354727991,0.03,124.04,123.99,20.0]
[1743354728384,20.29171867,124.02,123.98,7.7]
[1743354728782,20.29171867,124.01,123.98,7.7]
[1743354728980,20.29171867,124.0,123.97,0.063]
[1743354729972,20.29171867,123.99,123.97,0.063]
[1743354730192,20.29171867,124.0,123.97,0.063]
[1743354730367,19.07613357,124.01,123.97,0.063]
[1743354730368,20.57604181,124.01,123.97,0.063]
[1743354730790,20.29171867,124.0,123.97,0.063]
[1743354732095,20.29171867,124.01,123.97,0.063]
[1743354732988,20.29171867,124.0,123.97,0.063]
[1743354733890,20.29171867,123.98,123.97,0.063]
[1743354735178,28.64184181,123.98,123.97,0.063]
[1743354735391,47.43365224,123.98,123.97,0.063]
[1743354736495,28.78400338,123.98,123.97,0.063]
[1743354736790,155.24097091,123.98,123.97,0.063]
[1743354737184,155.74097091,123.98,123.97,0.063]
[1743354737385,163.13664777,123.98,123.95,0.063]
[1743354737579,59.37524777,123.96,123.95,0.063]
[1743354737787,40.58343734,123.96,123.95,0.063]
[1743354737990,20.29171867,123.96,123.95,0.063]
[1743354739200,20.29171867,123.97,123.95,0.063]
[1743354739674,20.29171867,123.96,123.95,0.063]
[1743354740095,20.57604181,123.96,123.95,0.063]
[1743354740483,59.65957091,123.96,123.95,0.063]
[1743354741183,67.72667091,123.96,123.95,0.063]
[1743354741487,39.36785224,123.96,123.95,0.063]
[1743354744878,89.0719,124.01,123.95,0.063]
[1743354745084,20.29171867,124.0,123.95,0.063]
[1743354745279,89.192,124.04,123.95,0.063]
[1743354745490,20.29171867,124.02,123.95,0.063]
[1743354745691,20.29171867,124.01,123.95,0.063]
[1743354746503,20.29171867,124.01,123.95,28.3001]
[1743354746990,20.29171867,124.02,123.95,28.3001]
[1743354747193,0.03,124.04,123.98,20.0]
[1743354747504,0.03,124.04,123.99,7.68]
[1743354748203,0.03,124.04,124.0,8.0645]
[1743354749705,0.03,124.04,124.0,28.2257]
[1743354749904,0.03,124.04,124.01,1.5272]
[1743354750302,0.03,124.04,124.02,8.0632]
[1743354750904,20.32171867,124.04,123.99,13.6888]
[1743354751695,20.29171867,124.02,123.98,21.5272]
[1743354751900,20.29171867,124.02,123.98,1.5272]
[1743354752502,20.29171867,124.03,123.98,9.5927]
[1743354752715,20.29171867,124.02,123.98,9.5927]
[1743354753799,20.29171867,124.03,123.98,9.5927]
[1743354754112,0.03,124.04,123.98,29.7572]
[1743354755115,0.03,124.04,123.99,0.14216157]
[1743354755499,0.03,124.04,123.99,18.933972]
[1743354756818,0.03,124.04,124.0,28.2257]
[1743354757414,0.03,124.04,124.0,109.2253]
[1743354759123,0.03,124.04,124.02,8.0632]
[1743354759918,0.03,124.04,124.02,15.7032]
[1743354764628,0.03,124.04,124.03,1.5889]
[1743354765196,0.03,124.04,124.03,20.522872]
[1743354766123,0.03,124.04,124.03,101.522472]
[1743354766303,0.0001,124.04,124.03,101.80679514]
[1743354766502,0.0001,124.04,124.03,109.86929514]
[1743354766715,0.03,124.08,124.05,0.14216157]
[1743354767135,0.03,124.08,124.07,0.14216157]
[1743354767445,0.03,124.08,124.07,7.78216157]
[1743354768647,0.03,124.08,124.07,15.84206157]
[1743354770646,0.03,124.08,124.07,7.64]
[1743354770831,0.03,124.08,124.05,88.6396]
[1743354771017,0.03,124.08,124.05,96.7006]
[1743354771933,0.03,124.08,124.05,88.6396]
[1743354772132,0.03,124.08,124.05,96.7006]
[1743354773219,0.03,124.08,124.05,88.6396]
[1743354773419,20.32171867,124.08,124.05,88.6396]
[1743354773719,0.03,124.08,124.05,15.7011]
[1743354776443,20.32171867,124.08,124.05,15.7011]
[1743354776742,0.03,124.08,124.05,15.7011]
[1743354779347,20.32171867,124.08,124.05,15.7011]
[1743354779547,0.03,124.08,124.05,15.7011]
[1743354779737,20.32171867,124.08,124.05,15.7011]
[1743354780237,20.32171867,124.08,124.05,7.64]
[1743354780432,20.32171867,124.08,124.05,15.7012]
[1743354780637,0.03,124.08,124.05,15.7012]
[1743354781654,0.03,124.08,124.05,35.8543]
[1743354785464,0.03,124.08,124.06,0.14216157]
[1743354785850,0.03,124.08,124.06,18.933972]
[1743354786040,0.03,124.08,124.06,99.933572]